Cogmind - Beta 15 @@@ ROGUE MODE // 2025.07.16 @ 20:18:52 Player: winnking222 Result: Destroyed by 3Z-AL5(R) with Subdweller Laser Performance ------------- Evolutions (0) 0 Regions Visited (3) 600 Robots Destroyed (41) 205 Value Destroyed (960) 960 Prototype IDs (2) 40 Alien Tech Used (0) 0 Bonus (12) 12 TOTAL SCORE: 1817 Bonus ------- Follower Combat Kills 28 Friendly Fire -16 Cogmind --------- Core Integrity 0/250 Matter 284/300 Energy 250/250 System Corruption 0% Temperature Cool (6) Movement Rolling (155) Ox5 Location -10/Subcaves Parts ------- > --- POWER (1) -------- Ion Engine > --- PROPULSION (2) --- Wheel Subdweller Monowheel > --- UTILITY (2) ------ High-capacity Storage Unit Light Armor Plating > --- WEAPON (2) ------- Beamcaster Subdweller Machine Gun > --- INVENTORY (20) --- Ion Engine Light Ion Engine Subdweller Power Source Scrap Suit Subdweller Optics Subdweller Optics Experimental Sensor Array Seismic Detector Targeting Computer Subdweller Laser Light Assault Rifle Subdweller Machine Gun Rocket Launcher Ripper Signal Generator Peak State ------------ > --- POWER ------------ Ion Engine > --- PROPULSION ------- Wheel Subdweller Monowheel > --- UTILITY ---------- High-capacity Storage Unit Light Armor Plating > --- WEAPON ----------- Beamcaster Subdweller Machine Gun > --- INVENTORY -------- Ion Engine Light Ion Engine Subdweller Power Source Scrap Suit Subdweller Optics Subdweller Optics Experimental Sensor Array Seismic Detector Targeting Computer Subdweller Laser Light Assault Rifle Subdweller Machine Gun Rocket Launcher Ripper Signal Generator [Rating: 17] Favorites ----------- Power Ion Engine Engine Ion Engine Propulsion Light Treads Treads Light Treads Wheel Wheel Utility Seismic Detector Device Seismic Detector Storage High-capacity Storage Unit Protection Light Armor Plating Weapon Assault Rifle Energy Gun Beamcaster Ballistic Gun Assault Rifle Launcher Rocket Launcher Build | -11 -10 -10 -10 ------- Run | Yrd Mat Min Sub Slots Evolved . | . . . . Power . | . . . . Propulsion . | . . . . Utility . | . . . . Weapon . | . . . . Parts Attached 23 | 7 3 7 6 Power 3 | 1 . 1 1 Engine 3 | 1 . 1 1 Core . | . . . . Reactor . | . . . . Propulsion 5 | 2 . 2 1 Treads 3 | 2 . 1 . Leg . | . . . . Wheel 2 | . . 1 1 Hover . | . . . . Flight . | . . . . Utility 7 | 2 3 1 1 Device 1 | 1 . . . Storage 4 | 1 2 1 . Processor . | . . . . Hackware . | . . . . Protection 2 | . 1 . 1 Artifact . | . . . . Weapon 8 | 2 . 3 3 Energy Gun 1 | . . . 1 Energy Cannon . | . . . . Ballistic Gun 6 | 2 . 2 2 Ballistic Cannon . | . . . . Launcher 1 | . . 1 . Special Weapon . | . . . . Impact Weapon . | . . . . Slashing Weapon . | . . . . Piercing Weapon . | . . . . Special Melee Weapon . | . . . . Unidentified Prototypes . | . . . . Parts Lost 10 | . . 5 5 Power 2 | . . 1 1 Propulsion 3 | . . 1 2 Utility 2 | . . 1 1 Weapon 3 | . . 2 1 Highest Loss Streak 3 | . . 2 3 To Critical Strikes . | . . . . Average Backups 9 | 2 6 11 13 Power 2 | . 1 3 2 Propulsion . | 1 1 . . Utility 4 | . 2 4 6 Weapon 2 | . 1 2 3 Tool/Special . | . . . . Unused Backups 11 | . . . 11 Power 3 | . . . 3 Propulsion . | . . . . Utility 6 | . . . 6 Weapon 2 | . . . 2 Tool/Special . | . . . . Average Slot Usage (%) 98 | . 99 97 99 Engine 13 | . 13 12 13 Treads 23 | . 27 27 14 Wheel 3 | . . . 13 Device 7 | . 13 8 . Storage 14 | . 14 14 14 Protection 6 | . . 5 14 Energy Gun 3 | . . . 13 Ballistic Gun 21 | . 27 20 14 Launcher 2 | . . 6 . Peak Build Rating 17 | 7 8 11 17 Average Rating 10 | 6 6 9 15 On Entrance 6 | . 7 8 10 Naked Turns . | . . . . Heaviest Build 57 | 15 30 54 57 Greatest Support 40 | 40 40 40 40 Greatest Overweight (x) 5 | . 1 5 5 Average Overweight (x) 1 | . . . 4 Largest Inventory Capacity 20 | 8 15 20 20 Average Capacity 16 | 7 12 17 20 Most Carried 17 | 5 10 15 17 Average Carried 10 | 3 6 12 15 Final Capacity 20 | 8 15 20 20 Final Carried 16 | 4 10 13 16 Class Distribution -------------------- 100% | Mutant Dominant Class ---------------- Mutant | -10/Materials Mutant | -10/Mines Mutant | -10/Subcaves Resources | -11 -10 -10 -10 ----------- Run | Yrd Mat Min Sub Matter Collected 1075 | 372 232 273 198 Remotely . | . . . . Salvage Created 1083 | 211 457 190 225 Parts 89 | 27 31 17 14 Haulers Intercepted 1 | . 1 . . Recyclers Shooed . | . . . . Parts Field Recycled . | . . . . Retrieved Matter . | . . . . Parts Self-Destructed 14 | . . . 14 Prevented . | . . . . Kills | -11 -10 -10 -10 ------- Run | Yrd Mat Min Sub Combat Hostiles Destroyed 27 | . 9 10 8 Guns 20 | . 9 3 8 AOE 7 | . . 7 . Classes Destroyed 7 | 1 4 1 1 Tunneler 10 | 9 1 . . Hauler 1 | . 1 . . Watcher 3 | . 3 . . Swarmer 8 | . 3 2 3 Grunt 12 | . 6 6 . Sentry 2 | . . 2 . Subdweller 5 | . . . 5 Best Kill Streak 5 | 5 5 4 3 Combat Bots Only 4 | . 3 4 3 Max Kills in Single Turn 2 | 1 2 2 1 Gunslinging . | . . . . Exploded 2 | . . 2 . Melee . | . . . . Uniques/NPCs Destroyed . | . . . . Combat | -11 -10 -10 -10 -------- Run | Yrd Mat Min Sub Hostile Shots Fired 149 | . 42 55 52 Missed 39 | . 8 14 17 Hits 110 | . 34 41 35 Projectile 110 | . 34 41 35 Critical Strikes 2 | . . 1 1 Damage Taken 1491 | . 393 534 564 Core 261 | . 59 93 109 Absorbed by Shields . | . . . . Core Remaining (%) 100 | 100 . . . Volleys Fired 121 | 17 34 22 48 Largest 2 | 2 2 2 2 Hottest 105 | 40 40 53 105 Shots Fired 218 | 34 68 40 76 Gun 205 | 34 68 27 76 Cannon . | . . . . Launcher 13 | . . 13 . Special . | . . . . Kinetic 165 | 34 68 27 36 Thermal 40 | . . . 40 Explosive 13 | . . 13 . Electromagnetic . | . . . . Robot Hit Streak 25 | 4 9 12 25 Robot Miss Streak 6 | 3 2 6 4 Penetration Max . | . . . . Secondary Targets 3 | . 1 . 2 Max Gunslinging Chain 1 | . 1 . 1 Shots Hit Robots 134 | 20 44 21 49 Core Hits 68 | 9 24 21 14 Critical Kills . | . . . . Critical Parts Destroyed 1 | . 1 . . Critical Strikes 2 | . 1 . 1 Destroy 2 | . 1 . 1 Melee Attacks . | . . . . Impact . | . . . . Slashing . | . . . . Piercing . | . . . . Sneak Attacks . | . . . . Combat Hostiles . | . . . . Follow-up Attacks . | . . . . Damage Inflicted 2485 | 247 576 848 814 Guns 1802 | 247 573 168 814 Cannons . | . . . . Explosions 673 | . . 673 . Melee . | . . . . Ramming 10 | . 3 7 . Kinetic 1381 | 247 573 168 393 Thermal 421 | . . . 421 Explosive 673 | . . 673 . Electromagnetic . | . . . . Impact . | . . . . Slashing . | . . . . Piercing . | . . . . Highest Corruption . | . . . . Average Corruption . | . . . . Corruption Purged . | . . . . Corruption Blocked . | . . . . Overload Shots . | . . . . Overflow Damage . | . . . . Projectiles . | . . . . Explosions . | . . . . Melee . | . . . . Knockbacks . | . . . . Impact . | . . . . Kinetic . | . . . . Secondary . | . . . . Self-Inflicted Damage 13 | . . 13 . Shots 1 | . . 1 . Rammed 2 | . 1 1 . Targets Rammed 2 | . 1 1 . Kicked . | . . . . Crushed . | . . . . Highest Temperature 40 | . 2 15 40 Average Temperature 10 | . 2 9 12 Received Heat Transfer 330 | . 132 126 72 Siege Activations . | . . . . Martial Activations . | . . . . Shielding Activations . | . . . . Robots Disrupted . | . . . . Combat Hostiles . | . . . . Robots Corrupted . | . . . . Combat Hostiles . | . . . . Parts Fried . | . . . . Impact Corruptions . | . . . . Robots Melted . | . . . . Combat Hostiles . | . . . . Parts Melted 1 | . . . 1 Heat Transferred 740 | . . . 740 Parts Sabotaged . | . . . . Parts Stolen . | . . . . Parts Stripped . | . . . . Power Chain Reactions . | . . . . Alert | -11 -10 -10 -10 ------- Run | Yrd Mat Min Sub Maximum Alert Level . | . . . . Low Security (%) 100 | 100 100 100 . Level 1 . | . . . . Level 2 . | . . . . Level 3 . | . . . . Level 4 . | . . . . Level 5 . | . . . . High Security . | . . . . Max Security . | . . . . Peak Influence 167 | 15 76 167 . Initial . | . . . . Average 33 | 1 18 52 . Influence Increases 814 | 45 273 426 70 Destroy 0b10 Robot/C 520 | . 180 280 60 Destroy 0b10 Robot/NC 70 | 45 25 . . Destroy Leader 98 | . 48 40 10 Allied During Kill 13 | . . 13 . Successful Hack 18 | . 18 . . Disable Machine 15 | . . 15 . Destroy Structure 65 | . 2 63 . Lose Combat Pursuer 15 | . . 15 . Influence Decreases 814 | 45 273 426 70 Time Decay 774 | 45 273 386 70 Lost Part 40 | . . 40 . Squads Dispatched 3 | . 2 1 . Investigation 1 | . 1 . . Extermination . | . . . . Reinforcement 1 | . 1 . . Assault 1 | . . 1 . Garrison . | . . . . Intercept . | . . . . Searches Triggered . | . . . . Construction Impeded . | . . . . Haulers Reinforced . | . . . . Active Scanning Responses . | . . . . Cargo Convoy Interrupts . | . . . . Stealth | -11 -10 -10 -10 --------- Run | Yrd Mat Min Sub Distress Signals 2 | . 2 . . Communications Jammed . | . . . . Distress Signals . | . . . . Times Spotted 40 | . 16 15 9 Peak Tracking Total 5 | . 5 4 3 Tactical Retreats 1 | . . 1 . Traps | -11 -10 -10 -10 ------- Run | Yrd Mat Min Sub Traps Triggered 2 | . 2 . . Indirectly . | . . . . Trap Hack Attempts . | . . . . Triggered . | . . . . Disarmed 7 | . 7 . . Reprogrammed . | . . . . Reused . | . . . . Traps Extracted . | . . . . Installed . | . . . . Triggered . | . . . . Machines | -11 -10 -10 -10 ---------- Run | Yrd Mat Min Sub Machines Disabled 1 | . . 1 . Max in Single Turn . | . . . . Machines Repaired . | . . . . Machines Dismantled . | . . . . Machines Sabotaged . | . . . . Overloaded Fab Kills . | . . . . Hacking | -11 -10 -10 -10 --------- Run | Yrd Mat Min Sub Machines Accessed 6 | . 5 . 1 Terminals 5 | . 5 . . Fabricators . | . . . . Repair Stations . | . . . . Recycling Units . | . . . . Scanalyzers . | . . . . Garrison Access . | . . . . Total Hacks 17 | . 13 . 4 Successful 14 | . 10 . 4 Failed 3 | . 3 . . Catastrophic 1 | . 1 . . Database Lockouts . | . . . . Manual . | . . . . Terminals 13 | . 13 . . Fabricators . | . . . . Repair Stations . | . . . . Recycling Units . | . . . . Scanalyzers . | . . . . Garrison Access . | . . . . Terminal Hacks 14 | . 10 . 4 Record 4 | . . . 4 Prototype ID Bank 1 | . 1 . . Branch Access Points 1 | . 1 . . Alert Level 1 | . 1 . . Locate Traps 4 | . 4 . . Disarm Traps 2 | . 2 . . Registered Components 1 | . 1 . . Fabricator Hacks . | . . . . Repair Station Hacks . | . . . . Recycling Unit Hacks . | . . . . Scanalyzer . | . . . . Garrison Access Hacks . | . . . . Unauthorized Hacks . | . . . . Terminals . | . . . . Fabricators . | . . . . Repair Stations . | . . . . Recycling Units . | . . . . Scanalyzers . | . . . . Garrison Access . | . . . . Data Cores Recovered . | . . . . Used . | . . . . Hacking Detections 4 | . 4 . . Full Trace Events 3 | . 3 . . Feedback Events . | . . . . Feedback Blocked . | . . . . Robot Schematics Acquired . | . . . . Robots Built . | . . . . Authchips . | . . . . Time . | . . . . Total Robot Build Rating . | . . . . Part Schematics Acquired . | . . . . Parts Built . | . . . . Authchips . | . . . . Time . | . . . . Total Part Build Rating . | . . . . Parts Repaired . | . . . . Time . | . . . . Parts Recycled . | . . . . Recycled Matter . | . . . . Retrieved Matter . | . . . . Retrieved Components . | . . . . Parts Scanalyzed . | . . . . Part Schematics Acquired . | . . . . Parts Damaged . | . . . . Bothacking | -11 -10 -10 -10 ------------ Run | Yrd Mat Min Sub Used RIF Installer . | . . . . Robots Hacked . | . . . . Non-combat . | . . . . Combat . | . . . . Robot Hacks Applied . | . . . . Relay Couplers Released . | . . . . Fabnet Peak Effective % . | . . . . Robots Rewired . | . . . . Allies Hacked . | . . . . Hacks Repelled . | . . . . Allies | -11 -10 -10 -10 -------- Run | Yrd Mat Min Sub Total Allies 1 | . . 1 . Largest Group 1 | . . 1 . Highest-Rated Group 31 | . . 31 . Highest-Rated Ally 31 | . . 31 . Total Orders . | . . . . Ally Attacks 26 | . . 26 . Total Damage 350 | . . 350 . Kills 5 | . . 5 . Allies Corrupted . | . . . . Allies Melted . | . . . . Intel | -11 -10 -10 -10 ------- Run | Yrd Mat Min Sub Active Infowar (turns) 2220 | 199 1197 824 . Seismic 2220 | 199 1197 824 . Robot Analysis Total . | . . . . Derelict Logs Recovered 3 | . . 3 . Drone Launches . | . . . . Drone Recoveries . | . . . . Exploration | -11 -10 -10 -10 ------------- Run | Yrd Mat Min Sub Turns Passed 4030 | 282 1220 1428 1100 Spaces Moved 1846 | 122 471 669 584 Core 20 | 20 . . . Treads 1241 | 102 471 661 7 Legs . | . . . . Wheels 585 | . . 8 577 Hover . | . . . . Flight . | . . . . Fastest Speed 50 | 50 160 155 130 Average Speed 170 | 141 161 196 153 Slowest Speed 240 | 160 240 240 240 Overloaded Moves . | . . . . Propulsion Burnouts . | . . . . Robots Hopped . | . . . . Potential Cave-ins . | . . . . Cave-ins Triggered . | . . . . Exploration Rate (%) 56 | 3 86 100 38 Regions Visited 3 Branch Regions 2 Pre-discovered Areas 1 | . . 1 . Known Exits Taken 1 | . 1 . . Unknown Exits Taken 2 | 1 . 1 . Scrap Searched 2 | . . 2 . Spaces Dug 11 | . . 11 . Terrain Destroyed 88 | . . 88 . Melee . | . . . . Projectile . | . . . . AOE 88 | . . 88 . Terrain Rammed . | . . . . Walls Destroyed . | . . . . Machines Disabled . | . . . . Actions | -11 -10 -10 -10 --------- Run | Yrd Mat Min Sub Total 2506 | 196 862 739 709 Wait 466 | 41 337 28 60 Move 1843 | 121 470 668 584 Hop . | . . . . Pick Up 36 | 10 11 7 8 Fast Attach 1 | 1 . . . Attach 19 | 6 3 5 5 Detach . | . . . . Swap 15 | . 4 7 4 Drop 3 | . 2 1 . Fire 121 | 17 34 22 48 Melee . | . . . . Ram . | . . . . Kick . | . . . . Crush 2 | . 1 1 . Escape Stasis . | . . . . Rewire . | . . . . Trap . | . . . . Miscellaneous . | . . . . Route ------- -11/Scrapyard -10/Materials (discovered 5 exits: *Mat x3 / *Min x2) -10/Mines (discovered 3 exits: *Mat x2 / *Sub) -10/Subcaves (discovered 1 exit: [*Mat]) History --------- Turn | Location | Event 16 | -11/Scrapyard | Discovered new exit (range 16) 283 | -11/Scrapyard | Entered Materials 303 | -10/Materials | Build established: Mutant 508 | -10/Materials | Discovered new exit (range 15) 879 | -10/Materials | Discovered new exit (range 16) 1179 | -10/Materials | Identified exit to Mines 1238 | -10/Materials | Discovered new exit (range 15) 1379 | -10/Materials | Discovered new exit (range 5) 1503 | -10/Materials | Entered Mines 1504 | -10/Mines | Met a Derelict testing a Signal Generator 1519 | -10/Mines | Found Signal Generator 1570 | -10/Mines | Found a damaged Exp. Sensor Array with a note attached 1573 | -10/Mines | Found Prototype Device 1597 | -10/Mines | Discovered new exit (range 10) 1766 | -10/Mines | Received a Rocket Launcher from a helpful Derelict 1920 | -10/Mines | Found a Scrap Suit stashed away for nefarious purposes 1923 | -10/Mines | Found Scrap Suit 2141 | -10/Mines | Learned location of Recycling (-7) 2158 | -10/Mines | Learned location of 1 exit from Materials 2290 | -10/Mines | Discovered new exit (range 6) 2293 | -10/Mines | Identified exit to Materials 2331 | -10/Mines | Core integrity fell below 50% 2931 | -10/Mines | Entered Subcaves 2932 | -10/Subcaves | Approached by a straggling Scientist 3010 | -10/Subcaves | Lost 3 parts (1p1n1w) 3118 | -10/Subcaves | Visited Clippyterm 3123 | -10/Subcaves | Learned Research machine intel 3390 | -10/Subcaves | Shifting Twisted Machinery released Sub. Optics 3390 | -10/Subcaves | Shifting Twisted Machinery released Sub. Monowheel 3642 | -10/Subcaves | Shifting Twisted Machinery released Ripper 3853 | -10/Subcaves | Discovered new exit (range 7) 3890 | -10/Subcaves | Core integrity fell below 20% 4031 | -10/Subcaves | Destroyed by 3Z-AL5(R) with Subdweller Laser Last Messages --------------- 03728_ 29-MZ3(u) builds Twisted Machinery. 7V-HGD(c): "I think it's somewhere northwest of here" 03748_ 29-MZ3(u) builds Twisted Machinery. 7V-HGD(c): "I think it's somewhere northwest of here" 03853_ EXIT=FOUND 03882_ 5W-RKN(R) destroyed. 03887_ Subatomizers dissect the Sub. Laser. 03888_ Sub. Machine Gun shoots sparks and powers down. 03897_ Lgt. Armor Plating destroyed. 7V-HGD(c): "I think it's somewhere northwest of here" 03900_ Subatomizers dissect the Sub. Laser. 03900_ Sub. Laser melted. 03900_ 2A-Z5T(R) destroyed. 03903_ Acquired 84 matter. 03906_ Acquired Sub. Laser. 7V-HGD(c): "I think it's somewhere northwest of here" 7V-HGD(c): "I think it's somewhere west of here" 04018_ Lgt. Treads destroyed. 04018_ DW-XCQ(R) destroyed. 04028_ Subatomizers dissect the Sub. Power Source. Map ----- +----------------------------------------------------+ | ?????????????????????????????????????????????????? | | ?????????????????????????????????????????????????? | | ?????????????????????????????????????????????????? | | ?????????????????????????????????????????????????? | | ?????????????????????????????????????????????????? | | ?????????????????????????????????????????????????? | | ?????????????????????????????????????????????????? | | ?????????????????? ?????????????????????????????? | | ???????????????? ##???????????????????????????? | | ??????????????? ???????# ??????????????????? | | ???????????????? ????## #??????????????????? | | ????????????????? ???? ???????????????????? | | ?????????????????? ???? ???????????????????? | | ??????????????????? ??? ????????????????????? | | ???????????????????# ??#""????????????????????? | | ???????????????????# ?? ?????????????????????? | | ???????????????????? ## ?????????????????????? | | ????????????????????? ??????????????????????? | | ?????????????????????? ??????????????????????? | | ???????????????????????# *#???????"# ???????????? | | ???????????????????????##R#????? ??????????? | | ???????????????????????# ##??## #?????????? | | ???????????????????????# ##?# ?????????? | | ??????###??????????????## ### #??????????? | | ?????##" ##????????????## #???????????? | | ?????# " #?????????#### @ #???????????? | | ?????# " #??######## ## ""## ?????????? | | ??????#"""#### ## # """""u """" ???????? | | ???????#" ## "" """""""" ???????? | | ????????# "" "" """"???????? | | ????????## ###" ### "" """???????? | | ?????????# "" ### "" #?????????? | | ??????#### # "" # ""##????????# | | ??????# " #### ## """#???????## | | ?????##"" #??### """#?###???# | | ?????# ###"#???# ## """"""##?# ###?## | | ?????# #??##???###### ###" "##??# "#??# | | ?????# |##???????????# #### ""##### #### | | ?????## ##???????????# #?# "" "" "" | | ??????# #???????????# #### """" "" | | ??????# #???????????#### ##?# """ ### | | ??????# ##?########?????# ##??#### " #?##### | | ??????# "### # #????## ##?????# #####?? | | ?????## " ###### ##????# #?? | | ?????#" ### # ## ## ###??## # | | ????# " ###?## ##??## # | | ????#""< ##????## #???# # | | ????##""######??# ### #???# # | | ?????##### " ##?####?# #??## # | | ?????#### " ##?????## ##???## # | +----------------------------------------------------+ Best States ------------- Heat Dissipation 25 Energy Generation 10 Energy Capacity 250 Matter Stores 300 Matter Capacity 300 Sight Range 16 Terrain Scan Density 10 Armor Coverage 150 Evasion (%) 50 Recoil Reduction 2 Item Schematics ----------------- None Robot Schematics ------------------ None Fabricated ------------ Nothing Repaired ---------- Nothing Alien Tech Used ----------------- None Achievements -------------- None Challenges ------------ None Game ------ Seed ProtonTripodWartreads Manual? 0 Play Time 00:22:22 Cumulative 96.9 hours Start 2025.07.16 @ 20:01:22 End 2025.07.16 @ 20:18:52 Sessions 1 Manual Loads 0 Difficulty Rogue Special Mode None Game No. 156 Rogue 156 Adventurer 0 Explorer 0 Win Type - Total 1 Types 1/0/0/0/0/0/0/0/0/0 Lore% 63 Gallery% 53 Achievement% 47 Wizard Run 0 Options --------- Layout 0 ASCII 0 Keyboard 0 Movement Mouse Keybinds 0 Fullscreen 1 Font 16/SmallcapsGlow Map View 75x55 Zoom Use 0% Tactical HUD 1 Map Filters NONE Filters NONE Steam 1 RUN: 415deb6b-c02e-4888-958b-316097d74003